bitfinex-derivatives/quotes_ETHF0:USTF0_20250531
["timestamp","ask_amount","ask_price","bid_price","bid_amount"]
[1748705750944,0.1964,2545.4,2545.3,7.15897]
[1748705761357,0.78523,2545.8,2545.7,0.78523]
[1748705761549,23.58823,2545.8,2545.7,0.78523]
[1748705761959,0.78526,2545.7,2545.6,0.78525]
[1748705762956,0.78526,2545.7,2545.6,3.99305]
[1748705763159,23.58823,2545.8,2545.7,0.78525]
[1748705763458,22.801,2545.8,2545.7,2.35595]
[1748705763758,22.801,2545.8,2545.7,3.97005]
[1748705764261,4.211,2545.8,2545.7,3.97005]
[1748705766468,0.1963,2545.9,2545.7,3.97005]
[1748705766658,0.78522,2545.8,2545.7,3.97005]
[1748705766965,0.98151,2545.9,2545.8,0.78522]
[1748705769066,0.1963,2545.9,2545.8,0.78522]
[1748705769366,18.7793,2545.9,2545.8,0.78522]
[1748705769561,18.7793,2545.9,2545.8,2.37462]
[1748705769764,0.1963,2545.9,2545.8,2.37462]
[1748705772660,0.1963,2545.9,2545.8,7.37462]
[1748705773167,0.1963,2545.9,2545.8,10.50374768]
[1748705774367,0.1963,2545.9,2545.8,5.50374768]
[1748705778474,0.78507,2546.4,2546.3,0.78508]
[1748705778666,5.8412,2546.5,2546.4,0.78505]
[1748705778867,5.02588074,2546.6,2546.5,0.78502]
[1748705779170,5.81086074,2546.6,2546.5,0.78502]
[1748705779673,0.78502,2546.5,2546.4,3.90823]
[1748705780577,6.00707074,2546.6,2546.5,0.78502]
[1748705782077,0.78502,2546.5,2546.4,3.90823]
[1748705782770,6.00708074,2546.6,2546.5,0.78502]
[1748705783471,7.63318074,2546.6,2546.5,0.78502]
[1748705784669,6.84818074,2546.6,2546.5,0.78502]
[1748705785068,5.22208074,2546.6,2546.5,0.78502]
[1748705785271,5.22208074,2546.6,2546.5,2.32452]
[1748705788077,6.00707074,2546.6,2546.5,0.78502]
[1748705788278,7.57487074,2546.6,2546.5,0.78502]
[1748705789078,0.78502,2546.5,2546.4,5.51552]
[1748705789978,7.57489074,2546.6,2546.5,0.78502]
[1748705791374,6.78988074,2546.6,2546.5,0.78502]
[1748705791574,0.78502,2546.5,2546.4,3.2078]
[1748705791874,3.98682,2546.5,2546.4,3.2078]
[1748705793076,3.98682,2546.5,2546.4,3.99285]
[1748705795181,3.2018,2546.5,2546.4,3.99285]
[1748705796480,3.98682,2546.5,2546.4,3.99285]
[1748705796677,3.98682,2546.5,2546.4,3.2078]
[1748705797180,3.98682,2546.5,2546.4,3.99285]
[1748705797581,3.98682,2546.5,2546.4,3.2078]
[1748705799183,5.16439,2546.5,2546.0,7.12207768]
[1748705799484,0.78514,2546.1,2546.0,6.33692768]
[1748705799681,19.33314,2546.1,2546.0,6.33692768]
[1748705799876,19.33314,2546.1,2546.0,3.12912768]
[1748705800280,24.33314,2546.1,2546.0,3.12912768]
[1748705800786,0.78528,2545.7,2545.5,0.78531]
[1748705800973,2.3127,2545.6,2545.5,0.78531]
[1748705802085,0.78533,2545.5,2545.4,3.2078]
[1748705802481,0.98173,2545.5,2545.4,3.2078]
[1748705802680,2.63833,2545.5,2545.4,3.2078]
[1748705802877,4.30693,2545.5,2545.4,3.2078]
[1748705805288,3.5216,2545.5,2545.4,3.99316]
[1748705805487,0.1964,2545.5,2545.4,3.99316]
[1748705806785,0.1964,2545.5,2545.4,5.59186]
[1748705809788,0.98173,2545.5,2545.4,3.2078]
[1748705812086,0.78542,2545.2,2545.1,4.71990168]
[1748705812495,0.78542,2545.2,2545.1,5.50535168]
[1748705812690,0.78542,2545.2,2545.1,3.20780168]
[1748705813100,2.37472,2545.2,2545.1,3.20780168]
[1748705815693,18.538,2545.2,2545.1,3.99322168]
[1748705815899,19.32342,2545.2,2545.1,3.99322168]
[1748705816094,19.32342,2545.2,2545.1,3.20780168]
[1748705817798,19.32342,2545.2,2545.1,3.99325168]
[1748705818292,1.6218,2545.4,2545.1,3.20780168]
[1748705818499,22.713,2545.3,2545.2,2.43482]
[1748705818697,4.176,2545.3,2545.2,3.98782]
[1748705819000,22.714,2545.3,2545.2,5.51992]
[1748705819502,23.49939,2545.3,2545.2,5.51992]
[1748705819703,22.714,2545.3,2545.2,5.51992]
[1748705819995,23.49939,2545.3,2545.2,5.51992]
[1748705820993,4.176,2545.3,2545.2,5.51992]
[1748705821599,4.3724,2545.3,2545.2,5.51992]
[1748705822296,4.176,2545.6,2545.5,0.78533]
[1748705822493,4.176,2545.9,2545.5,3.2078]
[1748705822791,0.78526,2545.8,2545.7,0.78525]
[1748705822989,0.78526,2545.8,2545.7,2.33485]
[1748705823398,19.31926,2545.8,2545.7,2.33485]
[1748705823801,0.78526,2545.8,2545.7,2.33485]
[1748705824496,0.78527,2545.7,2545.6,2.29937]
[1748705824701,0.7853,2545.6,2545.5,3.2078]
[1748705824999,2.331,2545.6,2545.5,3.99313]
[1748705825195,2.331,2545.6,2545.5,5.50103]
[1748705825396,0.78529,2545.7,2545.6,0.7853]
[1748705825594,0.78529,2545.7,2545.6,2.2932]
[1748705825791,0.78525,2545.8,2545.7,0.78523]
[1748705825991,0.78525,2545.8,2545.7,2.29313]
[1748705826388,19.31525,2545.8,2545.7,2.29313]
[1748705826594,1.5457,2546.0,2545.7,1.5079]
[1748705826801,3.99294,2546.2,2546.1,0.78514]
[1748705827095,4.176,2546.2,2546.1,0.78514]
[1748705827596,4.176,2546.2,2545.9,1.5371]
[1748705827796,4.176,2546.2,2545.8,6.3831]
[1748705827797,7.3838,2546.2,2545.8,1.5181]
[1748705827991,0.78527,2545.7,2545.6,0.78528]
[1748705828302,0.7853,2545.7,2545.6,0.78528]
[1748705828598,19.3133,2545.7,2545.6,0.78528]
[1748705828798,19.3133,2545.7,2545.6,2.32238]
[1748705829604,4.176,2545.8,2545.7,0.78527]
[1748705829809,3.1704,2546.3,2545.8,1.9631]
[1748705829998,25.9108,2546.2,2546.1,0.78514]
[1748705830201,4.96111,2546.2,2546.1,3.99294]
[1748705830404,25.0278,2546.3,2546.2,0.78511]
[1748705830603,25.0278,2546.3,2546.2,2.39931]
[1748705831106,2.3268,2546.3,2546.2,2.39931]
[1748705831302,2.3268,2546.3,2546.2,1.6142]
[1748705831504,0.78511,2546.2,2546.1,0.78514]
[1748705832500,0.78514,2546.1,2546.0,2.39935]
[1748705832908,0.78514,2546.1,2546.0,1.6142]
[1748705833108,0.78517,2546.0,2545.9,1.5831]
[1748705833806,0.78517,2546.0,2545.9,2.36831]
[1748705834203,22.696,2546.1,2546.0,0.78518]
[1748705834407,22.696,2546.1,2546.0,4.07878]
[1748705834709,22.696,2546.1,2545.9,2.36829]
[1748705834909,22.696,2546.1,2545.9,3.99939]
[1748705835101,22.696,2546.1,2546.0,0.78517]
[1748705835312,23.48117,2546.1,2546.0,0.78517]
[1748705835609,23.46313,2546.2,2546.1,0.78512]
[1748705835811,0.78513,2546.2,2546.1,0.78512]
[1748705836610,0.78514,2546.1,2546.0,2.40436]
[1748705836809,0.78514,2546.1,2546.0,0.78516]
[1748705837012,18.518,2546.2,2546.1,0.78513]
[1748705837211,5.6997,2546.3,2546.2,0.78511]
[1748705837405,6.63968074,2546.6,2546.5,0.78502]
[1748705837606,5.02588074,2546.6,2546.5,0.78502]
[1748705838117,5.81087074,2546.6,2546.5,0.78502]
[1748705838619,5.02588074,2546.6,2546.3,4.7161]
[1748705838814,5.81088074,2546.6,2546.5,0.78502]
[1748705839816,5.81088074,2546.6,2546.5,3.99282]
[1748705840025,5.02588074,2546.6,2546.5,3.99282]
[1748705842120,0.78479,2547.3,2546.7,1.96238]
[1748705842421,0.78482,2547.2,2547.1,0.78482]
[1748705842622,0.78482,2547.2,2547.1,1.5099]
[1748705842816,0.78482,2547.2,2547.1,3.0706]
[1748705843422,0.78482,2547.2,2547.1,3.85544]
[1748705843622,0.78482,2547.2,2547.1,3.0706]
[1748705844023,0.78482,2547.2,2547.1,3.85544]
[1748705844323,0.78482,2547.2,2547.1,3.0706]
[1748705844725,0.78482,2547.2,2547.1,2.29474]
[1748705844924,0.78482,2547.2,2547.1,1.5099]
[1748705845224,0.78482,2547.2,2547.1,2.29474]
[1748705845425,1.5062,2547.3,2547.1,1.5099]
[1748705845627,0.7848,2547.2,2547.1,2.29472]
[1748705846123,1.6628931,2547.4,2547.1,1.5099]
[1748705846320,20.1688931,2547.4,2547.3,3.99257]
[1748705846625,20.9536331,2547.4,2547.3,3.2078]
[1748705846923,20.9536331,2547.4,2547.3,3.99257]
[1748705846924,22.4598331,2547.4,2547.3,3.99257]
[1748705847325,22.4598331,2547.4,2547.3,3.2078]
[1748705847725,3.9538331,2547.4,2547.3,3.2078]
[1748705848624,0.78482,2547.2,2547.0,3.2078]
[1748705848830,0.78484,2547.1,2547.0,3.2078]
[1748705849030,0.78484,2547.1,2547.0,3.99264]
[1748705849837,2.35663,2547.2,2547.1,0.78484]
[1748705850920,0.78487,2547.0,2546.9,0.00588242]
[1748705851525,2.44327,2547.0,2546.9,0.00588242]
[1748705851731,4.09877,2547.0,2546.9,0.00588242]
[1748705853238,4.09877,2547.0,2546.9,0.79078242]
[1748705853533,22.59677,2547.0,2546.9,0.79078242]
[1748705856535,22.59677,2547.0,2546.9,0.00588242]
[1748705856839,0.78505,2546.4,2546.3,6.33692768]
[1748705857833,2.31395,2546.4,2546.3,3.12912768]
[1748705859037,0.78513,2546.2,2546.1,0.78513]
[1748705859338,0.7851,2546.3,2546.2,0.7851]
[1748705859736,0.78511,2546.2,2546.1,1.6585]
[1748705860041,0.78511,2546.2,2546.1,2.44364]
[1748705860237,0.78514,2546.1,2546.0,3.99295]
[1748705860432,0.78514,2546.1,2546.0,3.2078]
[1748705860938,0.78514,2546.1,2546.0,3.99297]
[1748705861444,0.78514,2546.1,2546.0,3.99296]
[1748705861933,0.78514,2546.1,2546.0,3.2078]
[1748705862137,0.78514,2546.1,2546.0,3.99297]
[1748705862339,0.78514,2546.1,2546.0,3.2078]
[1748705863037,2.39464,2546.1,2546.0,3.2078]
[1748705863937,4.03754,2546.1,2546.0,3.2078]
[1748705864838,4.23364,2546.1,2546.0,3.2078]
[1748705868039,0.78527,2545.7,2545.6,3.99308]
[1748705868237,0.78527,2545.7,2545.6,7.15978]
[1748705868842,0.78527,2545.7,2545.6,6.3745]
[1748705870138,2.38577,2545.7,2545.6,6.3745]
[1748705872639,20.0885,2545.7,2545.6,7.1598]
[1748705872840,20.87377,2545.7,2545.6,7.1598]
[1748705873643,20.87377,2545.7,2545.6,6.3745]
[1748705875249,20.87377,2545.7,2545.6,3.2078]
[1748705875437,1.96332,2545.6,2545.3,3.2078]
[1748705875643,0.78536,2545.4,2545.3,3.2078]
[1748705876041,0.78536,2545.4,2545.3,5.61129]
[1748705876246,4.92836,2545.4,2545.3,3.2078]
[1748705876442,0.78542,2545.2,2545.1,3.1864]
[1748705876743,0.78542,2545.2,2545.1,1.5245]
[1748705877546,3.62739,2545.3,2544.9,3.2078]
[1748705877740,0.78551,2544.9,2544.8,3.12912768]
[1748705877939,23.41551,2544.9,2544.8,3.12912768]
[1748705878245,0.78557,2544.7,2544.6,7.1888]
[1748705878745,0.78556,2544.8,2544.6,7.1888]
[1748705878940,0.78556,2544.8,2544.7,1.6491]
[1748705879746,2.40096,2544.8,2544.7,1.6491]
[1748705880941,0.78557,2544.7,2544.6,4.7851]
[1748705881755,3.2537,2544.8,2544.6,5.57068]
[1748705882045,3.2537,2544.8,2544.6,7.17498]
[1748705882252,0.78557,2544.7,2544.6,6.3894]
[1748705883643,1.6154,2544.8,2544.6,7.17498]
[1748705883845,24.1895,2544.9,2544.7,1.6043]
[1748705884146,0.78554,2544.8,2544.7,2.38986]
[1748705884544,23.41554,2544.9,2544.7,2.38986]
[1748705885045,0.78554,2544.8,2544.7,1.6043]
[1748705885251,0.78554,2544.8,2544.7,2.38987]
[1748705885450,22.63,2544.9,2544.8,0.78554]
[1748705885652,22.63,2544.9,2544.7,2.38985]
[1748705885949,0.78554,2544.8,2544.7,2.38985]
[1748705886449,0.78554,2544.8,2544.7,1.6043]
[1748705887445,22.63,2544.9,2544.7,1.6043]
[1748705887649,23.41554,2544.9,2544.7,1.6043]
[1748705887848,0.78554,2544.8,2544.7,2.38986]
[1748705888045,0.78554,2544.8,2544.7,1.6043]
[1748705888841,0.78557,2544.7,2544.6,3.2078]
[1748705890939,0.1963,2544.7,2544.6,3.9934]
[1748705891546,18.6793,2544.7,2544.6,3.9934]
[1748705892656,0.1963,2544.7,2544.6,3.9934]
[1748705893653,0.1963,2544.7,2544.6,5.4197]
[1748705894450,0.98187,2544.7,2544.6,5.4197]
[1748705894754,0.1963,2544.7,2544.6,5.4197]
[1748705896054,0.98187,2544.7,2544.6,5.4197]
[1748705896759,0.1963,2544.7,2544.6,5.4197]
[1748705897450,0.1963,2544.7,2544.6,2.2119]
[1748705897960,0.1963,2544.7,2544.6,3.6299]
[1748705903965,0.98187,2544.7,2544.6,3.6299]
[1748705904363,0.1963,2544.7,2544.6,3.6299]
[1748705904764,0.98187,2544.7,2544.6,3.6299]
[1748705904957,0.1963,2544.7,2544.6,3.6299]
[1748705905260,0.98187,2544.7,2544.6,3.6299]
[1748705905964,0.98187,2544.7,2544.6,2.2036]
[1748705906667,0.1963,2544.7,2544.6,2.2036]
[1748705906968,0.98187,2544.7,2544.6,2.2036]
[1748705907369,0.1963,2544.7,2544.6,2.2036]
[1748705908169,0.1963,2544.7,2544.6,5.33272768]
[1748705908370,0.98187,2544.7,2544.6,3.91472768]
[1748705908572,0.1963,2544.7,2544.6,3.91472768]
[1748705908870,18.6673,2544.7,2544.6,3.91472768]
[1748705909673,19.45287,2544.7,2544.6,3.91472768]
[1748705910274,18.6673,2544.7,2544.6,3.91472768]
[1748705910470,19.45287,2544.7,2544.6,3.12912768]
[1748705910672,18.6673,2544.7,2544.6,3.12912768]
[1748705910975,0.1963,2544.7,2544.6,3.91472768]
[1748705911174,0.1963,2544.7,2544.6,5.37962768]
[1748705912976,0.1963,2544.7,2544.6,2.2505]
[1748705915667,0.1963,2544.7,2544.6,7.2505]
[1748705916478,0.1963,2544.7,2544.6,2.2505]
[1748705929291,0.78541,2545.3,2545.2,0.78539]
[1748705929485,2.22491,2545.3,2545.2,0.78539]
[1748705929690,3.70131,2545.3,2545.2,0.78539]
[1748705930486,0.78545,2545.2,2545.1,0.78543]
[1748705930885,0.78545,2545.1,2545.0,3.99327]
[1748705931789,2.26185,2545.1,2545.0,3.99327]
[1748705932285,1.4764,2545.1,2545.0,3.99327]
[1748705932484,1.4395,2545.3,2545.2,0.78542]
[1748705932679,4.116,2545.4,2545.3,0.78539]
[1748705932886,2.901,2545.5,2545.4,0.78536]
[1748705933786,3.68635,2545.5,2545.4,0.78536]
[1748705934588,0.78536,2545.4,2545.3,3.99317]
[1748705934789,0.78536,2545.4,2545.3,3.2078]
[1748705934983,2.30386,2545.4,2545.3,3.2078]
[1748705935592,0.78542,2545.2,2545.1,0.78542]
[1748705936592,0.78545,2545.1,2545.0,7.13192896]
[1748705936790,2.29815,2545.1,2545.0,7.13192896]
[1748705937492,1.5127,2545.1,2545.0,7.13192896]
[1748705938688,2.29815,2545.1,2545.0,7.13192896]
[1748705940396,2.29815,2545.1,2545.0,6.34647896]
[1748705940590,2.29815,2545.1,2545.0,7.13195896]
[1748705942094,2.29815,2545.1,2545.0,3.99328]
[1748705943595,2.29815,2545.1,2545.0,3.2078]
[1748705944300,1.5127,2545.1,2545.0,3.99328]
[1748705944494,4.116,2545.3,2545.2,0.78542]
[1748705944693,1.446,2545.4,2545.3,0.78539]
[1748705944897,4.90128,2545.7,2545.3,3.2078]
[1748705945094,5.562,2545.7,2545.6,0.78529]
[1748705945292,0.0058931,2545.9,2545.8,0.78523]
[1748705946494,0.78526,2545.7,2545.6,3.2078]
[1748705947398,3.70216,2545.7,2545.6,3.2078]
[1748705948092,22.13816,2545.7,2545.6,3.2078]
[1748705948689,0.78539,2545.3,2545.2,3.13867896]
[1748705949700,2.19359,2545.3,2545.2,3.13867896]
[1748705949895,9.85638,2545.3,2544.8,3.2078]
[1748705950102,0.7855,2545.0,2544.9,0.7855]
[1748705950299,0.7855,2545.0,2544.9,0.8392461]
[1748705951302,4.90047,2545.1,2545.0,0.78548]
[1748705951501,4.90048,2545.1,2545.0,0.78548]
[1748705951998,0.78548,2545.0,2544.9,0.8392361]
[1748705952801,0.78548,2545.0,2544.9,0.0537461]
[1748705952995,2.29878,2545.0,2544.9,0.0537461]
[1748705953494,1.5133,2545.0,2544.9,0.8392561]
[1748705953692,4.115,2545.1,2545.0,0.78548]
[1748705953898,4.115,2545.1,2545.0,2.32868]
[1748705954302,4.115,2545.1,2545.0,2.3824261]
[1748705954803,2.19359,2545.3,2545.2,0.78542]
[1748705955400,1.4082,2545.3,2545.2,0.8391661]
[1748705955602,1.4082,2545.3,2545.2,2.3823661]
[1748705955791,2.19359,2545.3,2545.2,1.5969461]
[1748705956194,2.19359,2545.3,2545.2,2.3823661]
[1748705956402,2.19359,2545.3,2545.2,1.5969461]
[1748705956698,2.19359,2545.3,2545.2,2.3823661]
[1748705956905,1.4082,2545.3,2545.2,2.3823661]
[1748705957107,2.19359,2545.3,2545.2,2.3823661]
[1748705957403,4.90036,2545.4,2545.3,0.78539]
[1748705957603,4.115,2545.4,2545.3,2.22379]
[1748705958202,4.90036,2545.4,2545.3,2.22379]
[1748705958500,4.90036,2545.4,2545.3,2.2775361]
[1748705959406,4.90036,2545.4,2545.3,1.4921461]
[1748705959605,4.90036,2545.4,2545.3,0.8391361]
[1748705960808,4.90036,2545.4,2545.3,0.0537461]
[1748705965720,4.90036,2545.4,2545.3,0.8391361]
[1748705966209,4.90036,2545.4,2545.3,0.0537461]
[1748705969318,4.90036,2545.4,2545.3,0.8391361]
[1748705969517,4.90036,2545.4,2545.3,2.2532361]
[1748705970011,4.90036,2545.4,2545.3,1.4678461]
[1748705970414,4.115,2545.4,2545.3,2.2532361]
[1748705970615,0.78534,2545.5,2545.4,0.78533]
[1748705970816,0.78534,2545.5,2545.4,2.19943]
[1748705971117,0.78534,2545.5,2545.4,1.4141]
[1748705971618,0.78539,2545.3,2545.2,3.9932]
[1748705972617,4.88739,2545.3,2545.2,3.2078]
[1748705977017,0.78547,2545.0,2544.9,3.2078]
[1748705978324,0.78557,2544.7,2544.6,3.21429509]
[1748705978520,4.88757,2544.7,2544.6,3.21429509]
[1748705979514,6.35377,2544.7,2544.6,3.21429509]
[1748705980316,7.75397,2544.7,2544.6,3.2078]
[1748705980517,12.85297,2544.7,2544.3,3.2078]
[1748705980823,0.78683,2540.6,2540.5,21.97014779]
[1748705981020,23.5498,2540.6,2539.2,3.2078]
[1748705981216,3.2078,2539.5,2538.9,5.246]
[1748705981514,3.2078,2539.2,2538.8,5.246]
[1748705981724,3.2078,2538.9,2538.6,6.6481]
[1748705981917,3.2078,2538.9,2538.5,21.97312932]
[1748705982122,0.1969,2538.8,2538.5,26.97312932]
[1748705982317,3.4047,2538.8,2538.5,26.97312932]
[1748705982522,1.5724,2538.8,2538.5,26.97312932]
[1748705983518,3.2078,2539.1,2538.6,3.2078]
[1748705983719,0.00590528,2539.5,2539.0,3.2078]
[1748705983921,0.00590528,2539.5,2539.1,0.78727]
[1748705984128,3.2078,2539.4,2539.1,5.25]
[1748705984327,0.00590528,2539.5,2539.1,5.25]
[1748705984521,3.2078,2539.4,2539.1,5.25]
[1748705984923,3.2078,2539.4,2539.1,10.25]
[1748705985228,0.00590528,2539.5,2539.3,3.2078]
[1748705985427,3.2078,2539.4,2539.2,1.2753]
[1748705985729,0.00590528,2539.5,2539.3,1.2753]
[1748705985920,3.2078,2539.4,2539.3,1.2753]
[1748705987632,4.78268504,2539.4,2539.3,1.2753]
[1748705988126,1.57488504,2539.4,2539.3,2.06253]
[1748705988428,1.57488504,2539.4,2539.3,1.2753]
[1748705989033,1.57488504,2539.4,2539.3,2.06253]
[1748705989235,4.78268504,2539.4,2539.3,1.2753]
[1748705989536,1.57488504,2539.4,2539.3,1.2753]
[1748705990634,1.57488504,2539.4,2539.3,2.06253]
[1748705990830,1.57488504,2539.4,2539.3,7.06253]
[1748705991035,0.20270528,2539.5,2539.4,0.78719]
[1748705991237,0.20270528,2539.5,2539.4,2.08409]
[1748705991537,0.20270528,2539.5,2539.4,7.08409]
[1748705992337,0.20270528,2539.5,2539.4,2.08409]
[1748705992934,0.20270528,2539.5,2539.4,7.57609]
[1748705999543,2.34229055,2540.0,2539.9,0.78704]
[1748706000047,6.33143525,2540.5,2540.4,0.78689]
[1748706000736,0.78692,2540.3,2540.2,0.00590528]
[1748706002447,5.78692,2540.3,2540.2,0.00590528]
[1748706003142,0.78692,2540.3,2540.2,0.00590528]
[1748706003347,2.36147269,2540.3,2540.2,0.00590528]
[1748706004435,7.36147269,2540.3,2540.2,0.00590528]
[1748706004642,0.78698,2540.1,2540.0,0.01040697]
[1748706004842,3.99478,2540.1,2540.0,0.01040697]
[1748706005245,0.78711,2539.7,2539.5,1.3009]
[1748706005443,3.2078,2539.7,2539.6,0.78714]
[1748706005652,3.99493,2539.7,2539.6,0.78714]
[1748706005845,5.34773,2539.7,2539.6,0.78714]
[1748706006148,5.34771,2539.7,2539.6,0.78714]
[1748706006341,6.13515269,2539.7,2539.6,0.78714]
[1748706006541,6.13515269,2539.7,2539.5,1.3009]
[1748706006542,4.78235269,2539.7,2538.8,3.2078]
[1748706006741,5.56947269,2539.7,2539.6,0.78714]
[1748706006944,4.78235269,2539.7,2539.6,0.78714]
[1748706007751,5.56947269,2539.7,2539.6,0.78714]
[1748706008345,0.78714,2539.6,2539.5,0.78715]
[1748706008643,0.31634718,2539.6,2539.5,0.78717]
[1748706008844,4.78235269,2539.7,2539.6,0.78714]
[1748706009040,5.09871458,2539.7,2539.6,0.78714]
[1748706009250,4.78235269,2539.7,2539.6,0.78714]
[1748706009553,4.78235269,2539.7,2538.8,3.93686]
[1748706009554,0.78715,2539.6,2539.5,0.78716]
[1748706009850,0.78717,2539.5,2539.4,0.7872]
[1748706010154,4.78235269,2539.7,2539.2,7.46112]
[1748706010352,5.56946269,2539.7,2539.6,0.78714]
[1748706010551,3.2078,2539.7,2539.6,0.78714]
[1748706010744,5.62090996,2539.7,2539.5,0.78715]
[1748706010943,0.78717,2539.5,2539.3,1.3224]
[1748706011153,0.78724,2539.3,2539.1,5.494]
[1748706011457,2.36198099,2539.4,2539.3,0.78723]
[1748706011651,1.57476099,2539.4,2538.9,1.3224]
[1748706011957,3.2078,2539.1,2538.5,8.7018]
[1748706012257,0.78735,2539.0,2538.8,0.78736]
[1748706012451,1.2652,2539.0,2538.9,0.78735]
[1748706012751,2.05254,2539.0,2538.8,0.78737]
[1748706012954,1.2652,2539.0,2538.9,0.78735]
[1748706013450,0.78735,2538.9,2538.8,0.78736]
[1748706013653,3.62731099,2539.0,2538.9,0.78735]
[1748706013948,2.83996099,2539.0,2538.9,0.78735]
[1748706014758,3.62729099,2539.0,2538.9,0.78735]
[1748706015053,3.62729099,2539.0,2538.8,0.78737]
[1748706015255,3.62730099,2539.0,2538.9,0.78735]
[1748706015453,2.83996099,2539.0,2538.9,0.78735]
[1748706015645,1.57476099,2539.0,2538.9,0.78735]
[1748706016655,1.57476099,2539.0,2538.9,6.04435]
[1748706017157,1.57476099,2539.0,2538.9,7.28745]
[1748706017355,3.2078,2539.4,2539.3,0.78723]
[1748706018158,8.69781599,2539.4,2539.3,0.78723]
[1748706018349,5.49001599,2539.4,2539.3,0.78723]
[1748706018549,5.49001599,2539.4,2539.2,0.45181731]
[1748706018749,5.49001599,2539.4,2539.3,2.10243]
[1748706019255,8.69781599,2539.4,2538.4,3.2078]
[1748706019553,3.2078,2539.1,2538.8,1.96841]
[1748706019759,3.2078,2539.1,2539.0,0.78732]
[1748706020658,8.69781599,2539.4,2539.3,0.78723]
[1748706021953,10.04711599,2539.4,2539.3,0.78723]
[1748706023162,10.04711599,2539.4,2539.0,1.96828]
[1748706023359,10.04711599,2539.4,2539.3,0.78723]
[1748706024659,10.04711599,2539.4,2539.0,1.96828]
[1748706024860,10.04711599,2539.4,2539.3,0.78723]
[1748706025059,13.96831991,2539.4,2539.3,0.78723]
[1748706025762,12.61901991,2539.4,2539.3,0.78723]
[1748706029462,15.75675453,2539.4,2539.3,0.78723]
[1748706030967,15.75675453,2539.4,2539.3,2.10843]
[1748706031262,9.96774572,2539.4,2539.3,2.10843]
[1748706034063,4.47772973,2539.4,2539.3,2.10843]
[1748706036658,3.2078,2539.7,2539.4,1.96794]
[1748706036865,3.2078,2539.7,2539.6,0.78714]
[1748706038971,3.2078,2539.7,2539.4,0.00590528]
[1748706039269,0.78717,2539.5,2539.4,0.00590528]
[1748706039871,2.04667,2539.5,2539.4,0.00590528]
[1748706041575,2.04667,2539.5,2539.4,0.79310528]
[1748706041576,1.2595,2539.5,2539.4,0.79310528]
[1748706042471,2.04667,2539.5,2539.4,0.79310528]
[1748706042675,2.04667,2539.5,2539.4,0.00590528]
[1748706043675,0.78732,2539.0,2538.9,0.78733]
[1748706043875,0.78735,2538.9,2538.8,0.78737]
[1748706044077,1.3124,2538.9,2538.5,8.2818]
[1748706044380,2.09977,2538.9,2538.8,0.78738]
[1748706044984,1.3124,2538.9,2538.5,3.2078]
[1748706045389,1.3124,2538.9,2538.7,0.7874]
[1748706045590,2.09977,2538.9,2538.7,0.78739]
[1748706045890,1.3124,2538.9,2538.8,0.78738]
[1748706046191,2.09977,2538.9,2538.8,0.78738]
[1748706046384,1.3124,2538.9,2538.5,3.2078]
[1748706046593,3.2078,2538.7,2537.8,3.2078]
[1748706046783,3.2078,2538.3,2537.8,3.2078]
[1748706047089,1.2907,2538.2,2537.8,3.2078]
[1748706047285,3.2078,2538.0,2537.5,5.17725]
[1748706047591,19.813,2538.2,2538.1,0.7876]
[1748706048482,21.0862,2538.2,2538.1,0.7876]
[1748706048890,1.2732,2538.2,2538.1,0.7876]
[1748706049587,0.00590528,2538.5,2538.4,0.78751]
[1748706050184,1.27910528,2538.5,2538.3,0.78753]
[1748706050394,1.27910528,2538.5,2537.9,1.3015]
[1748706050584,0.78753,2538.4,2538.2,0.78755]
[1748706050784,5.26855,2538.3,2538.1,0.78759]
[1748706051292,9.481,2538.3,2537.7,0.78772]
[1748706051489,3.2078,2538.0,2537.7,0.78772]
[1748706051697,1.3308,2537.9,2537.8,0.78769]
[1748706051998,23.77531,2538.4,2538.2,0.78757]
[1748706052290,0.78755,2538.3,2538.1,0.78758]
[1748706052492,1.3308,2538.2,2537.6,8.38015]
[1748706052888,1.3308,2538.2,2538.1,0.7876]
[1748706053286,0.78765,2538.0,2537.8,0.78767]
[1748706053488,1.3308,2537.9,2537.8,0.78767]
[1748706054090,1.3308,2537.9,2537.8,0.78769]
[1748706056696,1.3308,2537.9,2537.7,0.78771]
[1748706056900,2.11848,2537.9,2537.7,0.78772]
[1748706057098,3.23297,2537.9,2537.7,0.7877]
[1748706057293,2.4453,2537.9,2537.8,0.78769]
[1748706057493,3.23297,2537.9,2537.7,0.78771]
[1748706057696,2.4453,2537.9,2537.2,6.25498]
[1748706058000,0.78771,2537.8,2537.6,0.78774]
[1748706058196,4.5783,2537.7,2537.6,0.78774]
[1748706058497,5.36602,2537.7,2537.5,0.78776]
[1748706058693,4.5783,2537.7,2537.6,0.78775]
[1748706059600,4.5783,2537.7,2537.3,0.78782]
[1748706059795,4.5783,2537.7,2537.4,0.78782]
[1748706059997,5.36604,2537.7,2537.5,0.78776]
[1748706060299,4.5783,2537.7,2537.6,0.78775]
[1748706060605,1.3705,2537.7,2537.6,0.78775]
[1748706060792,1.1145,2537.9,2537.8,0.78769]
[1748706061195,3.2078,2538.3,2537.7,3.2078]
[1748706061401,3.2078,2538.3,2538.2,0.78756]
[1748706061897,3.2078,2538.3,2537.6,1.96938]
[1748706062207,1.261,2538.2,2538.1,0.78757]
[1748706062594,2.04856,2538.2,2538.0,0.78761]
[1748706062906,1.261,2538.2,2538.1,0.7876]
[1748706063998,2.04856,2538.2,2538.0,0.7876]
[1748706064196,1.261,2538.2,2538.1,0.7876]
[1748706064407,2.04857,2538.2,2538.0,0.78761]